fUSD/lending_fUSD_20240829
["ID","MTS","AMOUNT","RATE_DAILY","PERIOD"]
[336541637,1724934632752,-2163.75115587,0.00010998,2]
[336541638,1724934632763,-3422.04110642,0.00010998,2]
[336541639,1724934632774,-688.33468283,0.00010998,2]
[336541640,1724934632801,-241.3067995,0.00010998,2]
[336541641,1724934632811,-300.0,0.00010999,2]
[336541642,1724934632820,-300.0,0.00010999,2]
[336541643,1724934632830,-6470.69513828,0.00011,2]
[336541644,1724934632841,-116617.26594638,0.00011,2]
[336541645,1724934632852,-472.14322502,0.00011,2]
[336541646,1724934632863,-268.81846927,0.00011,2]
[336541647,1724934632894,-5003.70250805,0.00011,2]
[336541648,1724934636097,4647.3528504,0.000109,2]
[336541649,1724934636122,7560.1839496,0.000109,2]
[336541656,1724934638259,-999.6,0.00011,2]
[336541657,1724934638287,-1422.41361554,0.00011,2]
[336541658,1724934638299,-1294.19060398,0.00011,2]
[336541659,1724934638325,-2599.27479749,0.00011,2]
[336541660,1724934638380,-379.83216807,0.00011,2]
[336541661,1724934638493,-930.51620209,0.00011,2]
[336541662,1724934638504,-5808.32989986,0.00011,2]
[336541663,1724934638516,-1567.91238729,0.00011,2]
[336541664,1724934638527,-408.0085986,0.00011,2]
[336541665,1724934638538,-1076.7,0.00011,2]
[336541666,1724934638550,-1154.54016205,0.00011,2]
[336541667,1724934638561,-13139.75031142,0.00011,2]
[336541668,1724934638572,-1283.80341934,0.00011,2]
[336541669,1724934638583,-17453.22840671,0.00011,2]
[336541790,1724934640249,-3264.39862226,0.00011,2]
[336541791,1724934640308,-316.61263512,0.00011,2]
[336541907,1724934644666,-2810.4069972,0.00011,2]
[336541908,1724934644709,-14353.39202392,0.00011,2]
[336541909,1724934644720,-8000.14499775,0.00011,2]
[336541913,1724934646985,-5094.73098086,0.00011,2]
[336541914,1724934654980,240.14,0.00010888,2]
[336541916,1724934693819,2199.6760504,0.00010944,2]
[336541917,1724934693842,3294.2820866,0.00010944,2]
[336541918,1724934719589,500.0,8.22e-05,2]
[336541919,1724934721154,500.0,9.59e-05,2]
[336541920,1724934735568,150.0,0.000109,2]
[336541921,1724934735590,150.0,0.000109,2]
[336541922,1724934735611,150.0,0.000109,2]
[336541923,1724934735632,289.268,0.000109,2]
[336541924,1724934745998,675.1766,0.000109,2]
[336541925,1724934755304,1050.0,0.0001,2]
[336541926,1724934771961,3691.2733134,0.00010898,2]
[336541927,1724934771982,6282.5484866,0.00010898,2]
[336541928,1724934776345,176.11046374,0.000109,2]
[336541929,1724934817092,500.0,0.00010912,2]
[336541930,1724934828952,352.95042201,0.000109,2]
[336541931,1724934853554,150.0,0.00010652,2]
[336541932,1724934853578,48.31,0.00010652,2]
[336541933,1724934866347,1510.26,0.00010339,2]
[336541934,1724934876998,333.33006752,0.000109,2]
[336541935,1724934920720,796.49056013,0.00010899,2]
[336541936,1724934920743,8374.08613987,0.00010899,2]
[336541938,1724934973038,1625.91386013,0.00010253,2]
[336541939,1724934973060,1002.16613987,0.00010253,2]
[336541940,1724934973579,219.62,0.0001,2]
[336541941,1724934994046,218.93,0.00010339,2]
[336541942,1724935014388,222.220045,0.000109,2]
[336541943,1724935022338,1240.95272,0.0001095,2]
[336541944,1724935053684,357.86,8.358e-05,2]
[336541945,1724935053793,357.86,0.00010622,2]
[336541946,1724935053903,313.73,0.00010276,2]
[336541947,1724935054148,313.73,0.00010279,2]
[336541948,1724935054324,313.73,0.00010281,2]
[336541949,1724935054580,313.73,0.00010284,2]
[336541950,1724935054794,313.73,0.00010287,2]
[336541951,1724935055056,313.73,0.0001029,2]
[336541952,1724935055273,313.73,0.00010292,2]
[336541953,1724935055669,313.73,0.00010295,2]
[336541954,1724935055896,313.73,0.00010298,2]
[336541955,1724935056336,313.73,0.000103,2]
[336541956,1724935056392,313.73,0.00010303,2]
[336541957,1724935056526,313.73,0.00010306,2]
[336541958,1724935056762,313.73,0.00010309,2]
[336541959,1724935056945,313.73,0.00010311,2]
[336541960,1724935057227,313.73,0.00010314,2]
[336541961,1724935057484,313.73,0.00010317,2]
[336541962,1724935057691,313.73,0.00010319,2]
[336541963,1724935057909,313.73,0.00010322,2]
[336541964,1724935058193,313.73,0.00010325,2]
[336541965,1724935064346,313.73,0.00010328,2]
[336541966,1724935119470,105.79109513,0.00010826,2]
[336541967,1724935119490,144.20890487,0.00010826,2]
[336541968,1724935152120,250.0,0.00010758,2]
[336541969,1724935172903,257.0,0.00010758,2]
[336541970,1724935179228,737.6,0.00010744,2]
[336541971,1724935179390,-150.08922,0.00010973,2]
[336541972,1724935179412,-197.0,0.00010997,2]
[336541973,1724935179436,-2006.63354069,0.00010997,2]
[336541974,1724935179459,-150.0,0.00010997,2]
[336541975,1724935179481,-392.9020722,0.00010998,2]
[336541976,1724935179504,-6421.3009121,0.00010998,2]
[336541977,1724935179525,-273.4793024,0.00010998,2]
[336541978,1724935179546,-1274.2885273,0.00010998,2]
[336541979,1724935179568,-545.7805428,0.00010998,2]
[336541980,1724935179592,-23588.52588251,0.00010999,2]
[336541981,1724935180314,-35000.0,0.00010999,2]
[336541982,1724935181185,-35000.0,0.00010999,2]
[336541983,1724935181831,-35000.0,0.00010999,2]
[336541984,1724935186895,155.0,0.00024,120]
[336541985,1724935229934,292.74,0.00010959,2]
[336541986,1724935251160,181.722,0.00010873,2]
[336541987,1724935257774,250.2302278,0.000108,2]
[336541988,1724935280879,1000.0,0.00010576,2]
[336541989,1724935328658,1240.95272,0.0001094,2]
[336541990,1724935392050,198.32,0.00010614,2]
[336541991,1724935510626,150.0,0.00010959,2]
[336541992,1724935594698,250.0,0.00010749,2]
[336541996,1724935631841,322.07,8.738e-05,2]
[336541997,1724935632934,1240.95272,0.000109,2]
[336541998,1724935633157,1240.95272,0.0001094,2]
[336541999,1724935641317,150.0,9.888e-05,2]
[336542001,1724935661148,257.0,0.00010746,2]
[336542002,1724935675822,409.92,0.00010753,2]
[336542003,1724935688079,250.0,0.00010585,2]
[336542005,1724935773542,205.65,0.00010959,2]
[336542020,1724935833761,-1240.95273,0.0001098,2]
[336542021,1724935833771,-150.0,0.00010986,2]
[336542022,1724935833780,-150.56,0.00010989,2]
[336542023,1724935833789,-300.0,0.00010989,2]
[336542024,1724935833798,-150.56,0.0001099,2]
[336542025,1724935833807,-150.56,0.0001099,2]
[336542026,1724935833816,-150.56,0.0001099,2]
[336542027,1724935833826,-150.56,0.0001099,2]
[336542028,1724935833835,-150.56,0.0001099,2]
[336542029,1724935833845,-150.56,0.0001099,2]
[336542030,1724935833854,-150.56,0.0001099,2]
[336542031,1724935833865,-150.56,0.0001099,2]
[336542032,1724935833874,-150.56,0.0001099,2]
[336542033,1724935833884,-639.2186825,0.00010995,2]
[336542034,1724935833893,-662.19556749,0.00010995,2]
[336542035,1724935833927,-150.56,0.0001099,2]
[336542036,1724935833937,-1399.30849011,0.00010995,2]
[336542037,1724935833946,-594.81,0.00010998,2]
[336542038,1724935833956,-9937.12150989,0.00010998,2]
[336542039,1724935834101,-201.0428968,0.00010998,2]
[336542040,1724935834121,-1142.31998781,0.00010998,2]
[336542041,1724935834131,-51.48581669,0.00010999,2]
[336542046,1724935838510,-150.56,0.0001099,2]
[336542047,1724935838520,-150.56,0.0001099,2]
[336542048,1724935838529,-150.56,0.0001099,2]
[336542049,1724935838538,-150.56,0.0001099,2]
[336542050,1724935838548,-150.56,0.0001099,2]
[336542051,1724935838556,-2691.58712077,0.00010999,2]
[336542084,1724935839175,-15742.42569947,0.00010999,2]
[336542135,1724935839719,-2172.85696673,0.00010999,2]
[336542137,1724935839731,-65037.84607783,0.00010999,2]
[336542144,1724935839784,-1004.42274007,0.00010999,2]
[336542256,1724935842074,-6022.56728222,0.00010999,2]
[336542257,1724935842086,-907.22,0.00010999,2]
[336542258,1724935842098,-646.91198398,0.00010999,2]
[336542259,1724935842134,-646.78097998,0.00010999,2]
[336542264,1724935843597,-592060.99967256,0.00010999,2]
[336542265,1724935843606,-150.0,0.00010999,2]
[336542266,1724935843616,-150.0,0.00010999,2]
[336542267,1724935843626,-15531.52127103,0.00011,2]
[336542268,1724935843635,-313845.45464569,0.00011,2]
[336542269,1724935843647,-619111.28426951,0.00011,2]
[336542353,1724935846142,-6623.03627378,0.00011,2]
[336542354,1724935846155,-4675.13669593,0.00011,2]
[336542355,1724935846166,-60658.20832671,0.00011,2]
[336542356,1724935846182,-8896.60140914,0.00011,2]
[336542357,1724935846217,-293.79103991,0.00011,2]
[336542358,1724935847680,-384.50318454,0.00011,2]
[336542359,1724935910707,970.68070733,0.00010899,2]
[336542360,1724935910729,2001.96599267,0.00010899,2]
[336542361,1724935931232,1608.09839932,0.00010899,2]
[336542366,1724935966443,6389.93560801,0.00010899,2]
[336542367,1724935966465,10000.0,0.00010899,2]
[336542368,1724935966486,3028.63039199,0.00010899,2]
[336542369,1724935981235,241.35,0.00010886,2]
[336542370,1724935990469,1621.3472,0.0001088,2]
[336542371,1724936073620,151.98228612,0.000109,2]
[336542372,1724936107017,250.0,0.00010729,2]
[336542373,1724936210568,672.06,0.00010781,2]
[336542374,1724936275802,250.0,0.00010772,2]
[336542375,1724936296756,1288.7938,0.00010899,2]
[336542376,1724936302003,869.59,0.00010858,2]
[336542377,1724936351615,327.46,8.912e-05,2]
[336542378,1724936367303,3325.66,0.00024,120]
[336542379,1724936463945,206.92,0.00010571,2]
[336542380,1724936559938,150.0,0.0001,2]
[336542381,1724936559960,150.0,0.0001,2]
[336542382,1724936559981,150.0,0.0001,2]
[336542383,1724936560002,150.0,0.0001,2]
[336542384,1724936560026,150.0,0.0001,2]
[336542385,1724936560048,150.0,0.0001,2]
[336542386,1724936560070,150.0,0.0001,2]
[336542387,1724936598137,150.0,0.00010531,2]
[336542388,1724936598158,2.9,0.00010531,2]
[336542389,1724936600687,1050.0,0.00010531,2]
[336542390,1724936657745,150.0,0.00010484,2]
[336542391,1724936657766,68.91,0.00010484,2]
[336542392,1724936685940,218.92,0.00010533,2]
[336542393,1724936685961,38.96632189,0.00010533,2]
[336542394,1724936685984,204.46367811,0.00010533,2]
[336542400,1724936865459,150.0,8.637e-05,2]
[336542401,1724936865479,150.0,8.637e-05,2]
[336542402,1724936865499,11.08,8.637e-05,2]
[336542403,1724936865709,138.92,0.00010901,2]
[336542404,1724936865731,150.0,0.00010901,2]
[336542405,1724936865752,22.16,0.00010901,2]
[336542406,1724936908166,250.0,0.0001046,2]
[336542407,1724937013049,150.0,0.00010541,2]
[336542421,1724937031501,-1306.44389609,0.00010978,2]
[336542422,1724937031511,-150.0,0.00010985,2]
[336542423,1724937031521,-300.0,0.00010985,2]
[336542424,1724937031530,-71719.0,0.00010986,2]
[336542425,1724937031540,-926.0,0.00010986,2]
[336542426,1724937031550,-4351.0,0.00010986,2]
[336542427,1724937031559,-150.58,0.00010989,2]
[336542428,1724937031569,-150.58,0.0001099,2]
[336542429,1724937031579,-150.58,0.0001099,2]
[336542430,1724937031589,-150.58,0.0001099,2]
[336542431,1724937031598,-150.58,0.0001099,2]
[336542432,1724937031609,-160.81649755,0.00010996,2]
[336542433,1724937031618,-302.0835672,0.00010998,2]
[336542434,1724937031627,-595.1282576,0.00010998,2]
[336542435,1724937031636,-89513.0,0.00010998,2]
[336542436,1724937031645,-340415.9532606,0.00010999,2]
[336542437,1724937031657,-3749.97599785,0.00010999,2]
[336542438,1724937031677,-4118.27119374,0.00010999,2]
[336542439,1724937031688,-637.89262546,0.00010999,2]
[336542440,1724937031699,-970.11929781,0.00010999,2]
[336542441,1724937031711,-653.26372546,0.00010999,2]
[336542442,1724937031739,-335.08950845,0.00010999,2]
[336542443,1724937031751,-276.52,0.00010999,2]
[336542444,1724937031762,-2073.79125364,0.00010999,2]
[336542445,1724937031774,-312.4205569,0.00010999,2]
[336542446,1724937031786,-905.51626183,0.00010999,2]
[336542447,1724937031805,-3377.03584135,0.00010999,2]
[336542448,1724937031826,-454.42544181,0.00010999,2]
[336542449,1724937031838,-1775.59272,0.00010999,2]
[336542450,1724937031849,-53399.01515706,0.00010999,2]
[336542451,1724937031869,-794.57151656,0.00010999,2]
[336542452,1724937031880,-803.83467103,0.00010999,2]
[336542453,1724937031893,-337.01913656,0.00010999,2]
[336542458,1724937037895,-1410.29148882,0.00010999,2]
[336542459,1724937037907,-430.74596129,0.00010999,2]
[336542460,1724937037920,-10252.81543227,0.00010999,2]
[336542461,1724937037949,-8323.234,0.00010999,2]
[336542462,1724937037964,-659.75132017,0.00010999,2]
[336542463,1724937037977,-315.16164704,0.00010999,2]
[336542465,1724937038006,-5162.34524856,0.00010999,2]
[336542467,1724937038016,-1284.02209181,0.00010999,2]
[336542469,1724937038028,-3962.55749776,0.00010999,2]
[336542471,1724937038039,-2497.15239399,0.00010999,2]
[336542643,1724937040270,-290.12389089,0.00010999,2]
[336542644,1724937040282,-337.69106469,0.00010999,2]
[336542645,1724937040293,-252.65998073,0.00010999,2]
[336542646,1724937040304,-1936.13302003,0.00010999,2]
[336542647,1724937041830,-1047.09835683,0.00010999,2]
[336542648,1724937041843,-252143.07321123,0.00010999,2]
[336542649,1724937041854,-96829.421609,0.00010999,2]
[336542652,1724937042458,-250.0,0.00010999,2]
[336542658,1724937042662,-3120.67128,0.00010999,2]
[336542663,1724937045795,-759.36481128,0.00010999,2]
[336542665,1724937046353,7500.0,0.00010899,2]
[336542666,1724937057487,400.0,0.000105,3]
[336542667,1724937059554,800.0,0.000106,3]
[336542668,1724937062011,1200.0,0.000107,3]
[336542669,1724937063979,1700.0,0.000108,3]
[336542670,1724937066075,2100.0,0.000109,3]
[336542671,1724937077424,206.92,0.00010836,2]
[336542672,1724937091270,302.89,0.00010844,2]
[336542673,1724937103485,8048.4633,0.00010899,2]
[336542674,1724937145973,250.0,0.00010778,2]
[336542675,1724937151694,36906.5667,0.00010899,2]
[336542676,1724937151720,9795.53632189,0.00010899,2]
[336542677,1724937151742,2963.87077811,0.00010899,2]
[336542678,1724937160644,359.51329334,0.000109,2]
[336542679,1724937212517,630.12,0.00010883,2]
[336542680,1724937215388,500.0,0.00010912,2]
[336542681,1724937316660,215.07,0.00010843,2]
[336542682,1724937368571,317.33,8.955e-05,2]
[336542683,1724937395213,193.78024,0.0001089,2]
[336542684,1724937400915,250.0,0.00010829,2]
[336542685,1724937635183,1829.0,0.00024,120]
[336542686,1724937700064,495.9,0.00010638,2]
[336542687,1724937711904,234.46,0.00010586,2]
[336542688,1724937818797,215.07,0.00010624,2]
[336542689,1724937888657,158.65890903,0.00010961,2]
[336542690,1724937889685,250.0,0.00010649,2]
[336542691,1724937935840,461.79468298,9.5e-05,2]
[336542692,1724938006587,160.46,0.00010697,2]
[336542693,1724938008747,338.1,8.75e-05,2]
[336542694,1724938014601,174.43634856,0.000109,2]
[336542695,1724938014909,2081.43574798,0.00010711,2]
[336542696,1724938014930,3595.89425202,0.00010711,2]
[336542697,1724938042763,245.28375206,0.000101,2]
[336542699,1724938074160,3296.7,0.0001048,2]
[336542700,1724938130965,155.0,0.0001088,2]
[336542718,1724938202794,241.86,0.0001088,2]
[336542719,1724938221068,212.43,0.00010486,2]
[336542727,1724938231730,-326.80050338,0.0001098,2]
[336542728,1724938231742,-547.73834891,0.0001098,2]
[336542729,1724938231754,-2423.19949662,0.0001098,2]
[336542730,1724938231794,-3035.10897082,0.0001098,2]
[336542731,1724938231804,-151.59449639,0.00010989,2]
[336542732,1724938231817,-148.40550361,0.00010989,2]
[336542733,1724938231827,-146.92651681,0.0001099,2]
[336542734,1724938231839,-552.99499924,0.0001099,2]
[336542735,1724938231852,-722.96759104,0.0001099,2]
[336542736,1724938231868,-7694.72609231,0.0001099,2]
[336542737,1724938231876,-155.0,0.0001099,2]
[336542738,1724938231886,-150.59,0.0001099,2]
[336542739,1724938231896,-150.59,0.0001099,2]
[336542740,1724938231906,-150.59,0.0001099,2]
[336542741,1724938231918,-150.59,0.0001099,2]
[336542742,1724938231927,-253190.17156807,0.00010999,2]
[336542743,1724938231937,-151.0,0.00010999,2]
[336542744,1724938231947,-188.82426531,0.00010999,2]
[336542745,1724938231957,-150.0,0.00010999,2]
[336542746,1724938231966,-15156.00250084,0.00011,2]
[336542747,1724938232299,-400.0,0.00011,2]
[336542759,1724938238768,-160.30138954,0.00010997,2]
[336542760,1724938238778,-709.73261696,0.00011,2]
[336542761,1724938238789,-1922.25770116,0.00011,2]
[336542762,1724938238800,-338.139,0.00011,2]
[336542763,1724938238811,-1372.2,0.00011,2]
[336542764,1724938238866,-644.59173948,0.00011,2]
[336542765,1724938240194,-5837.52812216,0.00011,2]
[336542766,1724938240203,-129779.38675197,0.00011,2]
[336542767,1724938240215,-14338.60074719,0.00011,2]
[336542768,1724938240226,-35111.39925281,0.00011,2]
[336542769,1724938240254,-1289.90576999,0.00011,2]
[336542770,1724938240266,-604.12492765,0.00011,2]
[336542771,1724938240277,-3486.48266364,0.00011,2]
[336542791,1724938245812,-3559.9489424,0.00011,2]
[336542792,1724938245998,-2925.7355855,0.00011,2]
[336542794,1724938251392,169.31117399,0.00010449,2]
[336542795,1724938256694,500.0,0.000105,2]
[336542796,1724938256796,500.0,0.000105,2]
[336542797,1724938257456,500.0,0.000105,2]
[336542798,1724938257531,500.0,0.000105,2]
[336542799,1724938258202,83.52082193,0.000105,2]
[336542800,1724938258223,125.48917807,0.000105,2]
[336542801,1724938258832,470.62,0.000105,2]
[336542802,1724938276486,300.0,0.000105,3]
[336542803,1724938278589,700.0,0.000106,3]
[336542804,1724938280753,1000.0,0.000107,3]
[336542805,1724938282986,1400.0,0.000108,3]
[336542806,1724938284960,1800.0,0.000109,3]
[336542807,1724938297170,1967.2663,0.00010899,2]
[336542808,1724938321342,2236.62452193,0.00010899,2]
[336542809,1724938321367,1000.51357807,0.00010899,2]
[336542810,1724938333811,176.11046373,0.000109,2]
[336542811,1724938354858,8823.3759582,0.00010899,2]
[336542812,1724938354890,10000.0,0.00010899,2]
[336542813,1724938354921,10000.0,0.00010899,2]
[336542814,1724938354952,10000.0,0.00010899,2]
[336542815,1724938354984,10000.0,0.00010899,2]
[336542816,1724938355016,10000.0,0.00010899,2]
[336542817,1724938355047,10000.0,0.00010899,2]
[336542818,1724938355077,10000.0,0.00010899,2]
[336542819,1724938355109,10000.0,0.00010899,2]
[336542820,1724938355139,10000.0,0.00010899,2]
[336542821,1724938355171,10000.0,0.00010899,2]
[336542822,1724938355202,8667.0,0.00010899,2]
[336542823,1724938355233,10001.0,0.00010899,2]
[336542824,1724938355272,66229.5891418,0.00010899,2]
[336542825,1724938359039,88479.2731,0.00010899,2]
[336542826,1724938364209,364.78118377,0.000109,2]
[336542827,1724938364562,1050.0,0.0001,2]
[336542828,1724938374075,150.0,0.00010684,2]
[336542829,1724938374096,150.0,0.00010684,2]
[336542830,1724938374117,150.0,0.00010684,2]
[336542831,1724938374137,150.0,0.00010684,2]
[336542832,1724938374158,150.0,0.00010684,2]
[336542833,1724938374178,150.0,0.00010684,2]
[336542834,1724938374201,100.0,0.00010684,2]
[336542835,1724938376421,500.0,0.00010899,2]
[336542837,1724938393977,1000.0,0.00010899,2]
[336542838,1724938431533,4878.4938,0.00010899,2]
[336542839,1724938443313,150.0,0.00010899,2]
[336542840,1724938443337,850.0,0.00010899,2]
[336542841,1724938457706,1106.89485806,0.000109,2]
[336542842,1724938470234,150.0,0.0001083,2]
[336542843,1724938470259,100.0,0.0001083,2]
[336542844,1724938491446,8229.3478,0.000109,2]
[336542845,1724938493438,150.0,0.00010711,2]
[336542846,1724938567847,150.0,0.00010959,2]
[336542847,1724938567870,154.0,0.00010959,2]
[336542848,1724938567892,169.47,0.00010959,2]
[336542849,1724938580167,35.16706906,0.000109,2]
[336542850,1724938580193,53418.12813094,0.000109,2]
[336542851,1724938587644,152.96,0.00010815,2]
[336542852,1724938596972,341.15,8.956e-05,2]
[336542853,1724938603526,450.0,0.000109,2]
[336542854,1724938603973,5000.0,0.000108,2]
[336542855,1724938621387,3000.0,0.000109,4]
[336542856,1724938669448,1113.38,0.00010712,2]
[336542857,1724938707836,181.99,0.00010712,2]
[336542858,1724938707857,150.0,0.00010712,2]
[336542859,1724938707877,236.35,0.00010712,2]
[336542860,1724938707899,3071.8,0.00010712,2]
[336542861,1724938711972,250.0,0.00010769,2]
[336542862,1724938743326,23900.0,0.00010652,2]
[336542863,1724938756342,1148.36,0.00010652,2]
[336542864,1724938770424,500.0,0.00010899,2]
[336542865,1724938770746,500.0,0.00010899,2]
[336542866,1724938771077,500.0,0.00010899,2]
[336542867,1724938771394,500.0,0.00010899,2]
[336542868,1724938771747,500.0,0.00010899,2]
[336542869,1724938772381,1000.0,0.00022,60]
[336542870,1724938794215,212.44,0.00010688,2]
[336542871,1724938827238,9189.64,0.00010678,2]
[336542872,1724938836152,1895.11,0.00010737,2]
[336542873,1724938838981,406.11,0.00022,60]
[336542874,1724938841933,491.63,0.00010629,2]
[336542875,1724938880265,200.0,0.00010606,2]
[336542876,1724938898618,183.97398844,0.000109,2]
[336542877,1724938921199,200.0,0.000102,2]
[336542878,1724938980087,250.0,0.00010604,2]
[336542879,1724939021601,150.0,0.00010912,2]
[336542880,1724939021626,350.0,0.00010912,2]
[336542881,1724939021679,1000.0,0.00010607,2]
[336542882,1724939031236,172.87,0.00010603,2]
[336542883,1724939049493,2861.98,0.00010626,2]
[336542884,1724939093199,357.43,8.817e-05,2]
[336542885,1724939114976,245.26,0.000106,2]
[336542886,1724939173876,150.0,9.888e-05,2]
[336542887,1724939214838,150.0,0.00010686,2]
[336542888,1724939214858,100.0,0.00010686,2]
[336542894,1724939260524,117.03,0.000109,2]
[336542895,1724939260551,46.68861537,0.000109,2]
[336542896,1724939288473,18856.13,0.00010658,2]
[336542897,1724939331338,150.13,0.00010666,2]
[336542898,1724939331375,79.92,0.00010666,2]
[336542899,1724939359827,320.88,0.00010658,2]
[336542905,1724939431958,-150.6,0.0001099,2]
[336542906,1724939431968,-150.6,0.0001099,2]
[336542907,1724939431977,-150.6,0.0001099,2]
[336542908,1724939431987,-304.0,0.00010997,2]
[336542909,1724939431997,-205.0,0.00010997,2]
[336542910,1724939432007,-300.0,0.00010997,2]
[336542911,1724939432017,-758.17890566,0.00010997,2]
[336542912,1724939432029,-849.76553381,0.00010997,2]
[336542913,1724939432039,-656.8716027,0.00010998,2]
[336542914,1724939432048,-342.62313689,0.00010998,2]
[336542915,1724939432061,-444.83746131,0.00010998,2]
[336542916,1724939432071,-132.74090349,0.00010998,2]
[336542917,1724939432086,-2331.32555382,0.00010998,2]
[336542918,1724939432098,-8838.59519199,0.00010998,2]
[336542919,1724939432108,-306.8299988,0.00010998,2]
[336542920,1724939432117,-496.72730183,0.00010999,2]
[336542921,1724939432132,-424.51363552,0.00010999,2]
[336542922,1724939432143,-272.74840306,0.00010999,2]
[336542923,1724939432154,-1403.37612209,0.00011,2]
[336542924,1724939434442,-157.70896675,0.00010997,2]
[336542925,1724939434452,-470.71103325,0.00011,2]
[336542926,1724939434465,-9071.77777833,0.00011,2]
[336542927,1724939434477,-293.41476327,0.00011,2]
[336542928,1724939434490,-820.63472712,0.00011,2]
[336542929,1724939434500,-1428.03940228,0.00011,2]
[336542930,1724939434512,-713.03302,0.00011,2]
[336542931,1724939434532,-446.19371241,0.00011,2]
[336542932,1724939434551,-1285.70283055,0.00011,2]
[336542933,1724939434562,-357.46371413,0.00011,2]
[336542934,1724939434575,-2852.7448324,0.00011,2]
[336542935,1724939434586,-642.52038,0.00011,2]
[336542936,1724939434597,-1624.35936226,0.00011,2]
[336542937,1724939434613,-1152.75568561,0.00011,2]
[336542938,1724939434627,-9311.86895749,0.00011,2]
[336542941,1724939437974,-879.14563992,0.00011,2]
[336542942,1724939437986,-702.12138426,0.00011,2]
[336542943,1724939437998,-5586.6814262,0.00011,2]
[336542944,1724939438009,-30339.5,0.00011,2]
[336542945,1724939438020,-3816.08831386,0.00011,2]
[336542946,1724939438032,-1120.66502401,0.00011,2]
[336542947,1724939438052,-878.53945113,0.00011,2]
[336542948,1724939438242,-1618.66005723,0.00011,2]
[336542949,1724939438253,-1886.88,0.00011,2]
[336542950,1724939438271,-2646.2132724,0.00011,2]
[336542951,1724939438282,-411.17997727,0.00011,2]
[336542952,1724939438312,-1004.60404111,0.00011,2]
[336542953,1724939438323,-999.52007999,0.00011,2]
[336542954,1724939438344,-343.26358931,0.00011,2]
[336542955,1724939438356,-14042.43253206,0.00011,2]
[336542956,1724939438366,-508.18118769,0.00011,2]
[336542957,1724939438381,-57105.5652135,0.00011,2]
[336542958,1724939438393,-12212.22040255,0.00011,2]
[336542959,1724939438404,-296.50190526,0.00011,2]
[336542968,1724939439889,-1510.21004475,0.00011,2]
[336542969,1724939439904,-476.24949595,0.00011,2]
[336542971,1724939439916,-2632.18607194,0.00011,2]
[336542973,1724939439927,-387.76,0.00011,2]
[336542974,1724939439942,-1106.40927013,0.00011,2]
[336542975,1724939440033,-527.39556223,0.00011,2]
[336542976,1724939440467,-15607.50524251,0.00011,2]
[336542977,1724939440478,-337.4557521,0.00011,2]
[336542978,1724939440501,-710600.29366493,0.00011,2]
[336542979,1724939440513,-707.12336694,0.00011,2]
[336543002,1724939444378,-150.0,0.00010999,2]
[336543003,1724939444387,-22832.3562768,0.00011,2]
[336543007,1724939445958,-4450.18547107,0.00011,2]
[336543008,1724939445987,-14110.7088197,0.00011,2]
[336543089,1724939447014,-3057.58113166,0.00011,2]